bitfinex-derivatives/quotes_SOLF0:USTF0_20240911
["timestamp","ask_amount","ask_price","bid_price","bid_amount"]
[1726083840798,15.4388,131.95,131.89,11.65]
[1726083840987,11.65,131.95,131.89,11.65]
[1726083841187,1.3807,131.98,131.89,11.65]
[1726083841188,11.65,131.96,131.89,11.65]
[1726083841384,11.65,131.96,131.93,3.7891]
[1726083841601,15.4386,131.96,131.93,3.7891]
[1726083841793,11.65,131.96,131.93,3.7891]
[1726083842195,15.4386,131.96,131.93,3.7891]
[1726083842693,11.65,131.96,131.93,3.7891]
[1726083842892,15.4382,131.97,131.94,3.7889]
[1726083844197,11.65,132.0,131.94,15.51159652]
[1726083844500,1.3118,132.04,131.94,15.51159652]
[1726083844501,11.65,132.03,131.96,11.65]
[1726083844690,11.65,132.03,131.98,11.65]
[1726083844999,11.65,132.03,131.97,11.65]
[1726083845297,11.65,132.03,131.98,3.7876]
[1726083845491,11.65,132.01,131.98,3.7876]
[1726083845687,11.65,132.01,131.97,3.7881]
[1726083845688,3.7873,132.0,131.97,3.7881]
[1726083847391,3.787,132.01,131.95,7.83638642]
[1726083847591,18.18,132.03,131.95,7.83638642]
[1726083848406,3.7872,132.01,131.96,3.7881]
[1726083848586,3.7872,132.01,131.95,7.83638642]
[1726083848895,1.3118,132.04,131.87,3.78088684]
[1726083848896,18.18,131.99,131.87,3.78088684]
[1726083849202,18.18,131.99,131.83,7.5841]
[1726083849203,18.18,131.99,131.89,19.619]
[1726083849402,3.7885,131.96,131.92,3.7893]
[1726083850402,3.7889,131.95,131.91,3.7897]
[1726083850598,19.5013,131.99,131.89,23.45897056]
[1726083851097,3.7885,131.96,131.92,3.7893]
[1726083851491,3.7885,131.96,131.93,3.7893]
[1726083852695,3.7882,131.97,131.93,3.7893]
[1726083853405,3.7882,131.97,131.94,3.7889]
[1726083853905,3.7879,131.98,131.94,3.7889]
[1726083854103,3.7879,131.98,131.95,3.7887]
[1726083854305,23.2889,131.99,131.89,23.45897056]
[1726083854502,23.2889,131.99,131.91,18.18]
[1726083854709,5.1089,131.99,131.91,18.18]
[1726083855205,3.7879,131.98,131.91,18.18]
[1726083855507,1.3856,132.0,131.91,18.18]
[1726083855702,3.7877,131.99,131.91,18.18]
[1726083856304,3.7877,131.99,131.94,3.7888]
[1726083856500,3.7874,132.0,131.92,18.18]
[1726083856702,3.7874,132.0,131.95,3.7887]
[1726083857306,3.7874,132.0,131.96,3.7884]
[1726083857698,3.7874,132.0,131.96,7.53007346]
[1726083857899,3.7876,131.99,131.96,3.74167346]
[1726083858101,18.18,132.03,131.96,3.74167346]
[1726083858302,1.407,132.04,131.96,18.18]
[1726083858503,18.18,132.08,131.98,18.18]
[1726083858704,3.786,132.05,131.98,18.18]
[1726083858902,18.18,132.08,131.98,18.18]
[1726083859206,18.18,132.08,131.98,21.93615794]
[1726083859400,3.786,132.05,131.98,21.93615794]
[1726083859597,18.18,132.08,131.98,21.93615794]
[1726083859805,3.7861,132.05,132.0,3.787]
[1726083860397,18.18,132.08,131.99,3.7874]
[1726083860805,18.18,132.08,131.98,21.93615794]
[1726083861603,3.7864,132.03,132.0,3.7873]
[1726083862705,3.7862,132.04,132.0,3.7873]
[1726083866001,18.18,132.06,131.98,3.75615794]
[1726083866002,3.7859,132.05,132.01,3.787]
[1726083866402,3.7855,132.07,132.0,18.18]
[1726083866602,21.5692,132.09,132.0,19.5877]
[1726083866802,2.7994,132.09,132.0,19.5877]
[1726083867005,3.7855,132.07,132.0,19.5877]
[1726083867201,2.7994,132.09,132.0,19.5877]
[1726083867603,3.7856,132.06,132.02,3.7866]
[1726083868507,3.7854,132.07,132.03,3.7864]
[1726083868910,2.7994,132.09,132.0,19.5877]
[1726083869806,3.7856,132.06,132.02,3.7866]
[1726083870004,2.7994,132.09,132.0,19.5877]
[1726083870503,3.7857,132.06,132.02,3.7865]
[1726083871010,3.7857,132.06,132.03,3.7864]
[1726083871410,3.7854,132.07,132.03,3.7864]
[1726083871604,2.7994,132.09,132.0,19.5877]
[1726083871802,18.18,132.08,132.0,1.4077]
[1726083872104,18.18,132.06,131.99,5.1734]
[1726083872301,3.7865,132.03,131.99,5.1734]
[1726083873709,3.7867,132.02,131.99,5.1734]
[1726083874703,11.63,132.03,131.98,3.75615794]
[1726083874907,11.63,132.03,131.97,11.63]
[1726083875512,3.7868,132.02,131.98,7.62264375]
[1726083875810,11.63,132.03,131.97,11.63]
[1726083876123,18.18,132.03,131.95,1.3084]
[1726083876504,3.7876,131.99,131.96,3.7883]
[1726083876710,18.18,132.03,131.95,1.3084]
[1726083876909,3.7878,131.99,131.96,3.7883]
[1726083878910,3.7878,131.98,131.95,5.0969]
[1726083879126,18.18,132.03,131.95,1.3084]
[1726083879608,3.73864125,132.04,131.9,1.3966]
[1726083879609,18.18,132.0,131.9,1.3966]
[1726083879812,18.18,132.0,131.91,1.4282]
[1726083880412,3.7886,131.96,131.93,3.7893]
[1726083880814,2.8171,132.03,131.91,19.6082]
[1726083881016,18.18,132.02,131.91,19.6082]
[1726083881214,3.788,131.98,131.95,3.7887]
[1726083887118,18.18,132.02,131.94,3.789]
[1726083887513,18.18,132.02,131.91,19.6082]
[1726083887813,3.788,131.98,131.95,3.7886]
[1726083888333,18.18,132.02,131.96,3.7882]
[1726083888621,18.18,132.05,131.96,18.18]
[1726083888814,18.18,132.05,131.97,1.3672]
[1726083889122,3.7864,132.03,131.99,3.7875]
[1726083889515,3.7864,132.03,131.98,3.73750636]
[1726083889721,3.7864,132.03,131.99,3.7874]
[1726083890224,3.7864,132.03,132.0,3.7871]
[1726083891226,3.7864,132.03,131.99,3.7874]
[1726083892320,2.8069,132.08,131.98,7.52510636]
[1726083892321,18.18,132.05,131.98,7.52510636]
[1726083892720,3.7869,132.02,131.98,7.52510636]
[1726083893223,3.7869,132.02,131.99,3.7875]
[1726083893622,3.7865,132.03,132.0,3.7872]
[1726083895221,3.7867,132.02,132.0,3.7872]
[1726083897818,0.5914,132.07,131.98,21.91750636]
[1726083897819,18.18,132.07,131.98,21.91750636]
[1726083898017,18.18,132.09,132.0,18.18]
[1726083898220,11.63,132.1,132.04,11.63]
[1726083898420,11.63,132.1,132.04,15.416]
[1726083898822,3.7855,132.06,132.04,15.416]
[1726083899425,3.7855,132.06,132.04,11.63]
[1726083899626,3.7858,132.05,132.03,15.4163]
[1726083900217,18.17,132.1,131.99,18.17]
[1726083900429,7.04532477,132.12,131.97,4.077]
[1726083900430,18.17,132.08,131.97,4.077]
[1726083900624,18.17,132.08,131.98,18.17]
[1726083901025,18.17,132.06,131.98,18.17]
[1726083901422,3.7862,132.04,132.01,3.7869]
[1726083903030,3.7857,132.06,132.03,3.7864]
[1726083903424,18.17,132.1,132.03,3.7864]
[1726083903621,18.17,132.1,132.0,18.17]
[1726083903818,18.17,132.08,131.98,18.17]
[1726083904231,18.17,132.06,131.99,3.7874]
[1726083904725,3.7866,132.03,131.99,3.7874]
[1726083905132,3.7863,132.04,131.97,7.94219466]
[1726083905429,18.17,132.06,131.98,18.17]
[1726083905627,18.17,132.04,131.97,4.077]
[1726083905826,3.7872,132.01,131.97,4.077]
[1726083906030,18.17,132.04,131.98,3.78483815]
[1726083906229,3.7866,132.03,132.0,3.7872]
[1726083908636,3.7862,132.04,132.01,3.7868]
[1726083909233,18.17,132.06,131.97,4.077]
[1726083909933,1.4313,132.07,131.97,1.3672]
[1726083909934,3.80236194,132.05,131.97,1.3672]
[1726083910228,18.17,132.02,131.97,1.3672]
[1726083910433,18.17,132.06,131.97,1.3672]
[1726083910631,1.4313,132.07,131.98,18.17]
[1726083910830,18.17,132.06,131.97,4.0683]
[1726083911033,18.17,132.04,131.94,18.17]
[1726083911237,21.93373464,132.04,131.94,18.17]
[1726083911433,3.7868,132.02,131.98,3.7876]
[1726083911738,18.17,132.04,131.95,4.1157]
[1726083911938,3.7872,132.01,131.97,3.788]
[1726083912235,18.17,132.04,131.97,3.788]
[1726083912434,3.7867,132.02,131.98,3.7876]
[1726083912635,18.17,132.04,131.98,3.7876]
[1726083912839,18.17,132.04,131.95,4.1157]
[1726083913136,19.5374,132.04,131.97,3.788]
[1726083913841,3.7871,132.01,131.97,3.788]
[1726083914236,19.5374,132.04,131.97,3.788]
[1726083915139,3.7872,132.01,131.98,3.7878]
[1726083915938,3.7873,132.0,131.97,3.7879]
[1726083917440,1.3674,132.04,131.98,3.7878]
[1726083918032,1.3674,132.04,131.97,3.7881]
[1726083918230,1.3674,132.04,131.97,3.70408515]
[1726083918442,19.6013,132.07,132.01,3.7868]
[1726083918636,1.4313,132.07,132.01,3.7868]
[1726083919039,18.17,132.09,131.98,18.17]
[1726083919340,18.17,132.09,132.01,3.7869]
[1726083920339,3.7864,132.04,132.01,3.7869]
[1726083920844,18.17,132.09,131.98,18.17]
[1726083921049,18.17,132.07,131.98,18.17]
[1726083922236,11.63,132.05,131.99,11.63]
[1726083922436,3.7869,132.02,131.99,15.4174]
[1726083922633,11.63,132.02,131.95,4.1157]
[1726083922839,3.787,132.01,131.98,3.7877]
[1726083923438,11.63,132.03,131.97,11.63]
[1726083923842,3.787,132.01,131.98,3.7877]
[1726083924942,11.63,132.03,131.97,15.4179]
[1726083925142,11.63,132.03,131.97,11.63]
[1726083925741,11.63,132.02,131.97,11.63]
[1726083926540,11.63,132.02,131.95,4.1157]
[1726083926752,11.63,132.01,131.95,4.1157]
[1726083927048,3.7879,131.98,131.95,7.9042]
[1726083928348,3.7877,131.99,131.95,7.9042]
[1726083928555,3.7877,131.99,131.96,15.4184]
[1726083928855,3.7874,132.0,131.96,15.41845264]
[1726083929247,11.63,132.02,131.97,3.788]
[1726083929447,3.7871,132.01,131.97,3.788]
[1726083929849,11.63,132.02,131.97,3.788]
[1726083930057,3.7876,131.99,131.96,15.4182]
[1726083930255,3.7876,131.99,131.96,3.7882]
[1726083931050,3.7876,131.99,131.97,3.7881]
[1726083932152,3.7875,132.0,131.97,3.7881]
[1726083932354,3.7875,132.0,131.95,4.1157]
[1726083932355,3.7875,132.0,131.98,3.7878]
[1726083934258,3.7875,132.0,131.97,3.788]
[1726083935761,3.7877,131.99,131.96,3.7882]
[1726083936263,3.337,132.04,131.96,3.78617991]
[1726083936758,3.7872,132.01,131.98,3.7877]
[1726083937149,3.337,132.04,131.98,3.7877]
[1726083937354,3.337,132.04,131.95,4.1157]
[1726083938256,3.337,132.04,131.97,3.788]
[1726083938554,18.19,132.03,131.97,3.788]
[1726083939759,3.7874,132.0,131.97,3.788]
[1726083942459,3.7874,132.0,131.95,4.1157]
[1726083942460,3.7876,131.99,131.96,3.7883]
[1726083942949,3.7879,131.98,131.95,4.1157]
[1726083943153,18.19,132.01,131.95,5.2032]
[1726083943965,18.19,132.01,131.95,1.4146]
[1726083944161,3.337,132.04,131.96,3.71042612]
[1726083944360,2.7471,132.04,131.95,19.6046]
[1726083944554,3.7863,132.04,132.01,3.787]
[1726083944755,18.19,132.07,131.99,3.72898583]
[1726083944950,18.19,132.07,131.97,18.19]
[1726083945162,3.7861,132.04,132.01,3.7868]
[1726083945558,2.7694,132.08,131.99,22.02882898]
[1726083945857,2.7694,132.08,132.0,1.3296]
[1726083946265,3.7862,132.04,132.01,3.7868]
[1726083946459,18.19,132.07,132.0,1.3296]
[1726083946761,18.19,132.07,131.97,18.19]
[1726083946965,3.7869,132.02,131.99,3.7874]
[1726083949461,3.7865,132.03,132.0,3.7873]
[1726083949961,18.19,132.07,131.97,22.04045954]
[1726083950168,3.7861,132.04,132.01,3.7868]
[1726083950769,3.786,132.05,132.02,3.7867]
[1726083951267,3.7862,132.04,132.01,3.7868]
[1726083954162,2.7694,132.08,132.01,3.7868]
[1726083954361,18.19,132.11,132.01,18.19]
[1726083954669,18.19,132.11,132.02,1.386]
[1726083954861,3.7854,132.07,132.04,3.7859]
[1726083956371,3.7848,132.09,132.03,18.19]
[1726083956572,24.70030649,132.13,132.03,18.19]
[1726083956870,3.7856,132.06,132.03,3.7863]
[1726083957065,18.19,132.09,132.02,1.386]
[1726083957265,18.19,132.09,132.02,5.1724]
[1726083958771,3.7858,132.06,132.02,5.1724]
[1726083959164,18.19,132.09,132.02,5.1724]
[1726083959365,18.19,132.09,132.02,3.7864]
[1726083959867,3.7859,132.05,132.02,3.7864]
[1726083960472,3.7861,132.04,132.01,5.1967]
[1726083960675,3.7861,132.04,132.01,3.7868]
[1726083960976,18.19,132.07,132.0,1.3717]
[1726083961467,5.15650649,132.13,132.01,18.19]
[1726083961669,18.19,132.12,132.03,18.19]
[1726083961864,3.7848,132.09,132.06,3.7854]
[1726083962266,18.19,132.12,132.06,3.7854]
[1726083962577,3.7848,132.09,132.06,3.7854]
[1726083962765,18.19,132.12,132.07,3.7852]
[1726083963071,2.8224,132.13,132.07,3.7852]
[1726083963271,3.7845,132.1,132.07,3.7852]
[1726083963664,0.5907,132.15,132.05,1.3859]
[1726083963665,0.5907,132.15,132.05,19.5759]
[1726083963975,18.19,132.14,132.05,19.5759]
[1726083964161,19.6261,132.14,132.06,3.7854]
[1726083965077,3.7846,132.1,132.06,3.7854]
[1726083965468,19.6261,132.14,132.05,19.5759]
[1726083966973,19.6261,132.14,132.07,3.7851]
[1726083967378,3.7844,132.11,132.07,3.7851]
[1726083967570,19.6261,132.14,132.07,3.7851]
[1726083968478,19.6261,132.14,132.06,3.7854]
[1726083968678,3.785,132.08,132.05,1.3859]
[1726083968873,2.8091,132.14,132.05,1.3859]
[1726083969177,18.19,132.12,132.03,5.1505]
[1726083969377,18.19,132.12,132.03,1.3643]
[1726083969769,20.9991,132.14,132.04,3.84122698]
[1726083970080,20.9991,132.14,132.03,20.8617]
[1726083970271,3.7852,132.08,132.05,3.7856]
[1726083970679,18.19,132.12,132.03,20.8617]
[1726083971084,18.19,132.1,132.03,1.3074]
[1726083972976,18.19,132.13,132.03,19.4974]
[1726083973172,18.19,132.13,132.04,3.75284613]
[1726083973577,18.19,132.13,132.03,20.8174]
[1726083974081,3.7844,132.1,132.03,20.8174]
[1726083974275,18.19,132.13,132.05,18.19]
[1726083974478,18.19,132.15,132.07,18.19]
[1726083974780,7.5629,132.21,132.08,18.19]
[1726083974781,21.99281341,132.17,132.08,18.19]
[1726083974981,18.19,132.17,132.08,18.19]
[1726083975386,18.19,132.17,132.1,3.7841]
[1726083975775,18.19,132.17,132.08,21.95988043]
[1726083975971,3.7831,132.15,132.11,3.7839]
[1726083976172,3.83991034,132.18,132.11,3.7839]
[1726083977287,20.1266,132.19,132.11,3.7839]
[1726083977680,3.7764925,132.18,132.11,3.7839]
[1726083978481,3.7764925,132.18,132.09,4.1133]
[1726083978677,18.19,132.17,132.09,1.4162]
[1726083978882,22.04216613,132.17,132.09,1.4162]
[1726083979078,22.04216613,132.17,132.1,3.7842]
[1726083979279,22.04216613,132.17,132.09,1.4162]
[1726083979280,3.85216613,132.17,132.09,1.4162]
[1726083979590,20.1266,132.19,132.09,1.4162]
[1726083980087,20.1266,132.19,132.1,18.19]
[1726083980288,20.1266,132.19,132.09,1.4162]
[1726083980690,3.7834,132.14,132.11,3.7839]
[1726083982185,20.1266,132.19,132.09,1.4162]
[1726083982391,20.1266,132.19,132.1,18.19]
[1726083983791,20.1266,132.19,132.12,3.7838]
[1726083984496,3.783,132.15,132.12,3.7838]
[1726083984984,3.7827,132.16,132.1,18.19]
[1726083985192,1.3489,132.19,132.12,18.19]
[1726083985683,18.19,132.23,132.12,18.19]
[1726083985989,18.19,132.23,132.14,18.19]
[1726083986584,3.7823,132.18,132.15,3.7828]
[1726083987291,3.3563,132.24,132.16,18.19]
[1726083987485,3.3563,132.24,132.14,2.6681]
[1726083987984,3.7821,132.18,132.15,3.7828]
[1726083988579,3.3563,132.24,132.15,3.7828]
[1726083988580,18.19,132.23,132.15,3.7828]
[1726083989182,3.7821,132.19,132.15,3.7828]
[1726083989693,18.19,132.23,132.15,3.7828]
[1726083989891,3.7823,132.18,132.15,3.7828]
[1726083990683,3.7824,132.17,132.14,6.4513]
[1726083990887,18.19,132.21,132.13,1.4195]
[1726083991289,18.19,132.18,132.09,2.797]
[1726083991487,21.98010139,132.18,132.09,1.3626]
[1726083991788,18.19,132.17,132.08,1.335]
[1726083992088,18.19,132.14,132.08,1.335]
[1726083992483,3.7842,132.11,132.08,1.335]
[1726083993086,3.7844,132.1,132.06,21.9754]
[1726083993286,3.7844,132.1,132.06,3.7854]
[1726083993690,3.7847,132.09,132.05,3.7858]
[1726083993885,18.19,132.13,132.05,3.7858]
[1726083994188,3.785,132.08,132.04,18.19]
[1726083994394,3.785,132.08,132.04,21.976]
[1726083994793,3.785,132.08,132.05,3.7858]
[1726083995386,18.19,132.13,132.06,3.7855]
[1726083995590,18.19,132.14,132.04,21.97520593]
[1726083995782,18.19,132.14,132.04,21.88322543]
[1726083995986,18.19,132.14,132.06,3.7855]
[1726083995987,3.7845,132.1,132.06,3.7855]
[1726083996883,3.7847,132.09,132.05,3.7857]
[1726083998194,3.7847,132.09,132.06,3.7855]
[1726084001091,3.785,132.08,132.05,3.7858]
[1726084001293,18.19,132.14,132.04,18.19]
[1726084001690,3.7849,132.09,132.06,3.7855]
[1726084002790,3.7849,132.09,132.05,3.7857]
[1726084003188,3.785,132.08,132.05,3.7857]
[1726084003499,18.19,132.12,132.02,20.8595]
[1726084003899,3.7852,132.08,132.02,20.8595]
[1726084004500,18.19,132.11,132.02,20.8595]
[1726084004999,3.7856,132.06,132.03,3.7862]
[1726084005298,18.19,132.11,132.02,2.6695]
[1726084005496,2.7298,132.1,132.02,2.6695]
[1726084005694,2.7298,132.1,132.03,3.7864]
[1726084006802,3.7857,132.06,132.03,3.7864]
[1726084008305,3.7857,132.06,132.02,6.4561]
[1726084009305,3.7857,132.06,132.02,1.335]
[1726084009804,3.7857,132.06,132.03,3.7864]
[1726084011098,3.79610497,132.09,132.02,5.1215]
[1726084011498,3.79610497,132.09,131.98,1.4371]
[1726084011499,18.19,132.08,131.98,19.6271]
[1726084011699,18.19,132.08,131.98,21.0043]
[1726084011700,22.02927368,132.08,131.98,21.0043]
[1726084011900,3.7858,132.05,132.01,3.7867]
[1726084012605,3.7858,132.05,132.02,3.7866]
[1726084014098,3.7858,132.05,131.98,21.0043]
[1726084014509,3.7861,132.04,131.99,1.4384]
[1726084015211,3.7861,132.04,132.02,3.7867]
[1726084015907,3.316,132.1,132.0,18.19]
[1726084016096,3.316,132.1,131.99,1.4384]
[1726084016097,2.7298,132.1,132.02,18.19]
[1726084016509,3.7852,132.08,132.04,3.786]
[1726084016903,3.7852,132.08,132.05,3.7857]
[1726084017307,3.7848,132.09,132.02,18.19]
[1726084017610,3.7848,132.09,132.03,1.327]
[1726084019197,3.785,132.08,132.05,3.7856]
[1726084020606,3.7853,132.07,132.04,3.786]
[1726084020914,18.19,132.12,132.03,1.327]
[1726084021107,3.7851,132.08,132.05,3.7858]
[1726084021307,18.19,132.12,132.03,1.327]
[1726084021806,3.7849,132.09,132.06,3.7853]
[1726084022411,2.7127,132.13,132.06,11.62]
[1726084022611,11.62,132.13,132.07,11.62]
[1726084023510,11.62,132.15,132.09,11.62]
[1726084024010,3.784,132.12,132.09,15.4046]
[1726084024217,3.784,132.12,132.09,3.7846]
[1726084029907,21.96416238,132.16,132.09,3.7846]
[1726084030512,3.784,132.12,132.09,3.7846]
[1726084032509,18.18,132.14,132.03,2.6709]
[1726084032710,18.18,132.11,132.03,2.6709]
[1726084033117,3.3289,132.13,132.04,3.71215146]
[1726084033423,2.7434,132.13,132.04,18.18]
[1726084033718,3.78416238,132.16,132.06,18.18]
[1726084033919,18.18,132.17,132.06,18.18]
[1726084034311,3.784,132.12,132.08,3.7848]
[1726084035324,3.7836,132.13,132.08,18.18]
[1726084035512,3.7836,132.13,132.09,1.3932]
[1726084035711,3.7836,132.13,132.09,2.7236]
[1726084036020,3.77006511,132.17,132.1,3.7842]
[1726084036412,3.7834,132.14,132.1,3.7842]
[1726084036617,3.77006511,132.17,132.1,3.7842]
[1726084039113,3.7834,132.14,132.1,3.7842]
[1726084039318,3.77006511,132.17,132.1,3.7842]
[1726084041624,3.7837,132.13,132.1,3.7842]
[1726084041831,3.77006511,132.17,132.09,6.5082]
[1726084042724,3.7838,132.13,132.1,3.7844]
[1726084042925,3.3657,132.18,132.09,2.7236]
[1726084043226,18.18,132.17,132.09,2.7236]
[1726084043823,3.7843,132.11,132.09,2.7236]
[1726084045819,3.7843,132.11,132.09,6.5083]
[1726084046331,11.63,132.17,132.1,15.4144]
[1726084046830,15.49258841,132.17,132.1,15.4144]
[1726084047419,15.49258841,132.17,132.1,11.63]
[1726084047623,11.63,132.16,132.09,18.1381]
[1726084048026,3.784,132.12,132.09,18.1381]
[1726084048233,11.63,132.16,132.1,3.7843]
[1726084048832,3.7837,132.13,132.1,3.7843]
[1726084049631,3.7839,132.12,132.1,3.7843]
[1726084053440,11.63,132.16,132.09,18.1382]
[1726084054237,3.784,132.12,132.09,18.1382]
[1726084054842,11.63,132.14,132.09,1.3932]
[1726084055039,11.63,132.13,132.05,1.3225]
[1726084055240,11.63,132.13,132.07,11.63]
[1726084056037,11.63,132.13,132.07,15.4152]
[1726084056437,3.7846,132.1,132.07,15.4152]
[1726084057145,11.63,132.14,132.09,11.63]
[1726084057448,3.86258841,132.17,132.11,11.63]
[1726084057449,15.49258841,132.17,132.11,11.63]
[1726084057949,11.63,132.15,132.05,2.7203]
[1726084058147,11.63,132.15,132.09,11.63]
[1726084058440,11.63,132.16,132.11,11.63]
[1726084058641,3.3657,132.18,132.12,11.63]
[1726084058642,1.4347,132.18,132.12,11.63]
[1726084058947,11.63,132.19,132.15,11.63]
[1726084059435,15.37224496,132.19,132.13,11.63]
[1726084059741,11.63,132.19,132.13,11.63]
[1726084059947,11.63,132.18,132.12,1.3172]
[1726084060147,11.63,132.16,132.09,11.63]
[1726084060443,3.7836,132.13,132.09,11.63]
[1726084061140,3.7839,132.12,132.09,11.63]
[1726084061744,3.7841,132.11,132.09,11.63]
[1726084062046,11.63,132.13,132.08,11.63]
[1726084062351,3.7846,132.1,132.07,11.63]
[1726084062536,11.63,132.13,132.08,11.63]
[1726084063047,3.7844,132.1,132.08,11.63]
[1726084063248,11.63,132.13,132.08,11.63]
[1726084063648,3.7843,132.11,132.08,11.63]
[1726084064351,3.7843,132.11,132.07,3.7852]
[1726084065151,3.7843,132.11,132.08,3.7848]
[1726084065356,19.623,132.16,132.06,19.4972]
[1726084065656,20.1859,132.18,132.08,18.18]
[1726084065849,3.7832,132.15,132.11,3.7841]
[1726084066048,3.7832,132.15,132.1,18.18]
[1726084066248,3.7832,132.15,132.1,19.5039]
[1726084066547,3.7833,132.14,132.1,19.5039]
[1726084066754,3.7833,132.14,132.1,1.3239]
[1726084067646,3.7833,132.14,132.11,3.7841]
[1726084068756,1.3536,132.2,132.11,22.00294277]
[1726084068950,1.3536,132.2,132.12,1.4194]
[1726084069749,1.3536,132.2,132.13,3.7833]
[1726084069750,3.7826,132.17,132.13,3.7833]
[1726084070147,1.3536,132.2,132.13,3.7833]
[1726084070944,3.7829,132.16,132.12,5.2032]
[1726084071148,3.87705351,132.19,132.12,1.4194]
[1726084071344,19.5336,132.2,132.12,1.4194]
[1726084071549,19.5336,132.2,132.12,5.2032]
[1726084072251,3.7829,132.16,132.12,5.2032]
[1726084072649,19.5336,132.2,132.12,1.4194]
[1726084072851,1.3721,132.22,132.12,19.5994]
[1726084073259,1.3721,132.22,132.15,3.7828]
[1726084074551,1.9645,132.25,132.14,18.18]
[1726084074751,1.9645,132.25,132.15,2.7896]
[1726084075053,3.7815,132.21,132.17,3.7822]
[1726084076555,3.781,132.22,132.16,18.18]
[1726084076760,3.781,132.22,132.17,1.4439]
[1726084077054,3.7807,132.23,132.19,3.7817]
[1726084077856,3.781,132.22,132.19,3.7817]
[1726084078158,3.781,132.22,132.18,3.7819]
[1726084078753,19.6256,132.26,132.17,1.4439]
[1726084078959,19.6256,132.26,132.17,5.2262]
[1726084079361,3.7813,132.21,132.18,3.7821]
[1726084079558,3.7813,132.21,132.17,1.4439]
[1726084079960,3.7813,132.21,132.17,5.2261]
[1726084080374,3.7816,132.2,132.17,5.2261]
[1726084080662,19.6256,132.26,132.17,1.4439]
[1726084081064,3.7815,132.2,132.17,1.4439]
[1726084081364,19.6256,132.26,132.17,1.4439]
[1726084081365,18.18,132.24,132.17,1.4439]
[1726084081559,3.7816,132.2,132.17,1.4439]
[1726084082364,3.7816,132.2,132.17,5.2263]
[1726084083567,3.7815,132.21,132.18,3.782]
[1726084084359,1.4456,132.26,132.18,18.18]
[1726084084557,1.4456,132.26,132.18,21.88405553]
[1726084084866,3.7809,132.23,132.18,18.18]
[1726084085069,1.3236,132.29,132.2,18.18]
[1726084085270,5.1040512,132.29,132.22,18.18]
[1726084086169,3.7804512,132.29,132.22,18.18]
[1726084086361,1.427,132.31,132.22,18.18]
[1726084086771,3.78,132.26,132.22,21.9608]
[1726084087771,3.7802,132.25,132.22,21.9608]
[1726084088174,5.26228968,132.31,132.23,3.7805]
[1726084088371,3.78,132.26,132.23,3.7805]
[1726084088576,3.78,132.26,132.22,19.5041]
[1726084088874,5.26228968,132.31,132.22,19.5041]
[1726084089272,5.26228968,132.31,132.22,23.2848]
[1726084089573,3.78,132.26,132.22,23.2848]
[1726084089973,3.7802,132.25,132.22,23.2848]
[1726084090571,3.7802,132.25,132.22,19.5041]